Cogmind - Beta 11 X8 @@@ ROGUE MODE // 2021.11.02 @ 01:54:33 Player: cptwinky Result: Destroyed by Striker with Plasma Lance Performance ------------- Evolutions (6) 3000 Regions Visited (25) 5000 Robots Destroyed (236) 1180 Value Destroyed (9472) 9472 Prototype IDs (77) 1540 Alien Tech Used (2) 400 Bonus (9060) 9060 TOTAL SCORE: 29652 Bonus ------- High Alert Combat Kills 772 Follower Combat Kills 2462 Aligned with FarCom 300 Met Data Miner 300 Met Imprinter 300 Was Imprinted 300 Met Zhirov 300 Met Warlord at Base 500 MAIN.C Attacked Warlord 500 Warlord Defense Kill 3470 Friendly Fire -144 Cogmind --------- Core Integrity 0/1150 Matter 105/300 Energy 68/100 System Corruption 13% Temperature Warm (100) Movement Core (150) Ox2 Location -4/Warlord Parts ------- > --- POWER (2) -------- (None) > --- PROPULSION (6) --- (None) > --- UTILITY (8) ------ Propulsion Shielding > --- WEAPON (3) ------- Thermoblaster > --- INVENTORY (5) ---- Advanced Energy Well (500) Matter Compressor (250) Advanced Transmission Jammer Peak State ------------ > --- POWER ------------ Micro Fission Core Light Antimatter Reactor > --- PROPULSION ------- Cooled Gravmag System Combat Gravmag System Cooled Antigrav System Cooled Antigrav System Combat Antigrav System Combat Antigrav System > --- UTILITY ---------- Experimental Cooling System Large Storage Unit Improved Signal Interpreter Experimental Targeting Computer Experimental Armor Integrity Analyzer Advanced Weapon Cycler Improved Cloaking Device Makeshift Ablative Armor > --- WEAPON ----------- KE Penetrator KE Penetrator 8R-AWN's Boregun > --- INVENTORY -------- Combat Gravmag System Advanced Energy Well Matter Compressor Makeshift Ablative Armor Thief Drone Bay Bomb Factory No. 2 Transdimensional Reconstructor Long-range Proton Cannon Long-range Proton Cannon Hypervelocity Mass Driver Thermoblaster Thermoblaster Heavy Pick Sapper Charge [Rating: 141] Favorites ----------- Power Cold Fusion Reactor Engine Cooled Deuterium Engine Power Core Micro Fission Core Reactor Cold Fusion Reactor Propulsion Combat Antigrav System Treads Light Treads Leg Advanced Myomer Leg Wheel Armored Huge Wheel Hover Unit Combat Antigrav System Utility Improved Signal Interpreter Device Experimental Heat Sink Storage Large Storage Unit Processor Improved Signal Interpreter Hackware EX Chip 2 Protection Improved Light Armor Plating Weapon 8R-AWN's Boregun Energy Gun Improved Arc Projector Energy Cannon Beam Cannon Ballistic Gun 8R-AWN's Boregun Ballistic Cannon Advanced Assault Cannon Launcher Tesla Bomb Launcher Special Weapon Flamer Impact Weapon Power Maul Slashing Weapon Scythe Piercing Weapon Heavy Pick Build | -11 -10 -10 -10 -9 -8 -7 -7 -7 -7 -6 -6 -6 -6 -6 -6 -6 -5 -5 -5 -5 -5 -4 -4 -4 -4 ------- Run | Scr Mat Min Exi Min Mat Fac Low Low Dat Pro Fac Was Fac Low Low Zio Pro Fac Upp Upp Zhi Pro Fac Upp War Slots Evolved 12 | . . . . . 4 2 . . . . 2 . . . . . . 2 . . . . 2 . . Power 1 | . . . . . . . . . . . 1 . . . . . . . . . . . . . . Propulsion 4 | . . . . . 2 . . . . . 1 . . . . . . 1 . . . . . . . Utility 6 | . . . . . 2 2 . . . . . . . . . . . 1 . . . . 1 . . Weapon 1 | . . . . . . . . . . . . . . . . . . . . . . . 1 . . Parts Attached 403 | 2 4 5 41 7 40 30 21 18 . 5 25 . 12 6 14 11 10 18 22 7 4 14 31 1 55 Power 19 | . . . 6 1 . 1 . . . . 3 . 1 . 1 . . 2 . . . . 2 . 2 Engine 7 | . . . 3 . . . . . . . 2 . 1 . 1 . . . . . . . . . . Core 5 | . . . 1 1 . 1 . . . . . . . . . . . 2 . . . . . . . Reactor 7 | . . . 2 . . . . . . . 1 . . . . . . . . . . . 2 . 2 Propulsion 63 | 2 . . 9 3 14 8 . . . . 2 . 1 . 2 . . 1 . . . . 8 . 13 Treads 24 | 2 . . 4 1 8 2 . . . . . . . . . . . . . . . . . . 7 Leg 11 | . . . 3 2 6 . . . . . . . . . . . . . . . . . . . . Wheel 3 | . . . 2 . . 1 . . . . . . . . . . . . . . . . . . . Hover 25 | . . . . . . 5 . . . . 2 . 1 . 2 . . 1 . . . . 8 . 6 Flight . | . . . . . . . . . . . . . . . . . . . . . . . . . . Utility 193 | . 2 3 15 . 9 12 13 10 . 5 11 . 10 5 8 6 7 11 13 5 3 9 11 1 24 Device 112 | . . 2 11 . 5 4 10 8 . 5 7 . 5 2 3 2 5 8 8 4 1 6 8 . 8 Storage 12 | . 2 1 4 . . 1 . . . . 1 . 1 . . . . . . . 1 . 1 . . Processor 7 | . . . . . . 1 1 . . . 1 . . . . . . . 1 . . . . . 3 Hackware 5 | . . . . . 1 . . . . . . . . . . . . 2 . . . . 2 . . Protection 57 | . . . . . 3 6 2 2 . . 2 . 4 3 5 4 2 1 4 1 1 3 . 1 13 Artifact . | . . . . . . . . . . . . . . . . . . . . . . . . . . Weapon 128 | . 2 2 11 3 17 9 8 8 . . 9 . . 1 3 5 3 4 9 2 1 5 10 . 16 Energy Gun 2 | . . . . . . . . . . . . . . . . . 1 . 1 . . . . . . Energy Cannon 13 | . 2 . 4 . . . . . . . 2 . . . . . . . 1 1 . 1 1 . 1 Ballistic Gun 46 | . . 2 6 2 4 . 1 3 . . 3 . . . 1 3 1 2 3 1 . 3 3 . 8 Ballistic Cannon 26 | . . . 1 1 9 5 2 2 . . 3 . . . . . . . . . . . 2 . 1 Launcher 29 | . . . . . 2 3 4 3 . . 1 . . 1 1 1 1 1 3 . 1 . 2 . 5 Special Weapon 1 | . . . . . . . 1 . . . . . . . . . . . . . . . . . . Impact Weapon 8 | . . . . . 1 1 . . . . . . . . 1 1 . 1 1 . . 1 1 . . Slashing Weapon 1 | . . . . . 1 . . . . . . . . . . . . . . . . . . . . Piercing Weapon 2 | . . . . . . . . . . . . . . . . . . . . . . . 1 . 1 Special Melee Weapon . | . . . . . . . . . . . . . . . . . . . . . . . . . . Unidentified Prototypes 29 | . . 1 9 . 1 . . . . . 2 . 2 . . 1 . 1 1 . 3 . 1 . 7 Parts Lost 47 | . . . 1 4 . 1 . . . . 2 . 2 . . . . . . . . 1 8 . 28 Power 7 | . . . 1 1 . . . . . . 1 . . . . . . . . . . . 1 . 3 Propulsion 9 | . . . . 1 . . . . . . . . . . . . . . . . . . 2 . 6 Utility 20 | . . . . . . 1 . . . . . . 2 . . . . . . . . . 4 . 13 Weapon 11 | . . . . 2 . . . . . . 1 . . . . . . . . . . 1 1 . 6 Highest Loss Streak 22 | . . . 1 2 . 1 . . . . 1 . 1 . . . . . . . . 1 5 . 22 Average Slot Usage (%) 97 | . 89 92 94 97 99 91 99 99 100 100 97 100 99 100 100 97 98 99 97 100 98 99 93 100 92 Engine 3 | . 14 14 9 . . . . . . . 4 6 6 6 6 6 6 3 . . . . . . . Core 4 | . . . . 8 9 7 7 7 7 7 5 . . . . . . 1 5 5 5 5 5 5 4 Reactor 2 | . . . 4 5 . . . . . . . 6 6 6 6 6 6 5 5 5 5 5 3 5 4 Treads 7 | . 28 28 13 5 29 14 . . . . . . . . . . . . . . . . . . 1 Leg 1 | . . . 6 22 6 . . . . . . . . . . . . . . . . . . . . Wheel 1 | . . . 8 . . 6 . . . . . . . . . . . . . . . . . . . Hover 20 | . . . . . . 2 30 30 30 30 32 33 33 33 33 33 33 35 35 35 35 35 30 31 27 Device 12 | . . 3 7 14 9 14 15 15 15 15 13 13 13 10 10 11 12 14 12 13 13 13 18 23 13 Storage 7 | . 17 17 15 14 9 7 7 7 7 7 6 6 6 6 6 6 6 5 5 5 5 5 5 5 4 Processor 6 | . . . . . . . 7 7 7 7 10 13 13 13 13 13 13 11 11 11 11 11 10 10 13 Hackware 1 | . . . . . 9 4 . . . . . . . . . . . . . . . . 2 . . Protection 7 | . . . . . 9 16 15 14 15 15 8 6 5 8 8 7 5 6 6 8 7 8 1 2 5 Energy Cannon 2 | . 24 22 6 8 . . . . . . 2 . . . . . . . 1 4 5 2 3 . . Ballistic Gun 6 | . . 5 21 8 . . . 3 . . . 13 13 11 11 11 12 8 7 3 . 7 . 15 12 Ballistic Cannon 5 | . . . . 8 17 14 10 10 7 7 8 . . . . . . . . . . . 2 . . Naked Turns 4 | . . . . . . . . . . . . . . . . . . . . . . . . . 4 Heaviest Build 205 | 11 49 59 205 70 85 100 52 47 45 46 68 62 63 64 64 85 85 68 80 70 72 72 77 64 102 Greatest Support 163 | 40 40 40 72 60 112 112 64 64 64 64 80 80 80 80 80 80 80 96 96 96 96 96 96 89 163 Greatest Overweight (x) 7 | . 1 1 7 1 2 3 . . . . . . . . . 1 1 . . . . . . . 5 Average Overweight (x) . | . . 1 2 . . 2 . . . . . . . . . . . . . . . . . . . Largest Inventory Capacity 35 | 8 20 20 35 20 20 20 10 10 10 10 15 15 15 15 15 15 15 15 15 15 15 15 15 15 15 Average Capacity 16 | 8 17 20 24 20 20 19 10 10 10 10 13 15 15 15 15 15 15 15 15 15 15 15 15 15 14 Most Carried 26 | 6 20 20 26 20 20 20 10 10 10 10 15 14 15 15 15 15 15 15 15 15 15 15 15 15 15 Average Carried 15 | 6 12 19 19 18 19 18 9 9 10 10 12 14 14 14 14 14 14 14 14 13 14 14 14 15 14 Final Capacity 20 | 8 20 20 20 20 20 10 10 10 10 10 15 15 15 15 15 15 15 15 15 15 15 15 15 15 5 Final Carried 20 | 6 20 19 20 20 20 10 10 10 10 10 14 14 14 15 15 15 15 15 15 15 15 15 15 15 3 Class Distribution -------------------- 52% | Mutant 25% | Machinist-Mutant 11% | Scavenger-Mutant 3% | Machinist-Gunner 3% | Hauler-Mutant Dominant Class ---------------- Mutant | -10/Materials Mutant | -10/Mines Mutant | -10/Exiles Mutant | -9/Mines Mutant | -8/Materials Mutant | -7/Factory Mutant | -7/Lower Caves Mutant | -7/Lower Caves Mutant | -7/Data Miner Mutant | -6/Proximity Caves Mutant | -6/Factory Machinist-Mutant | -6/Waste Machinist-Mutant | -6/Factory Scavenger-Mutant | -6/Lower Caves Scavenger-Mutant | -6/Lower Caves Scavenger-Mutant | -6/Zion Scavenger-Mutant | -5/Proximity Caves Machinist-Mutant | -5/Factory Machinist-Mutant | -5/Upper Caves Machinist-Mutant | -5/Upper Caves Machinist-Mutant | -5/Zhirov Machinist-Mutant | -4/Proximity Caves Machinist-Mutant | -4/Factory Machinist-Gunner | -4/Upper Caves Commander-Gunner | -4/Warlord Resources | -11 -10 -10 -10 -9 -8 -7 -7 -7 -7 -6 -6 -6 -6 -6 -6 -6 -5 -5 -5 -5 -5 -4 -4 -4 -4 ----------- Run | Scr Mat Min Exi Min Mat Fac Low Low Dat Pro Fac Was Fac Low Low Zio Pro Fac Upp Upp Zhi Pro Fac Upp War Matter Collected 10658 | 208 138 57 857 88 924 1167 783 386 . 89 719 . 431 773 474 140 230 301 743 127 50 506 343 154 970 Remotely . | . . . . . . . . . . . . . . . . . . . . . . . . . . Salvage Created 10139 | . 138 85 405 19 939 713 551 329 . 10 974 . 780 707 424 . . 210 632 232 120 440 574 256 1601 Parts 462 | . 4 9 23 1 58 33 21 12 . 1 45 . 40 29 14 . . 15 28 8 2 20 24 8 67 Haulers Intercepted 13 | . 1 . . . 5 1 . . . . 1 . 2 . . . . . . . . . 3 . . Recyclers Shooed 9 | . . . . 1 2 . . . . . 4 . 1 . . . . . . . . . 1 . . Parts Field Recycled . | . . . . . . . . . . . . . . . . . . . . . . . . . . Retrieved Matter . | . . . . . . . . . . . . . . . . . . . . . . . . . . Parts Self-Destructed 363 | . . . . . . . 25 11 . 12 . . . 21 13 4 . . 35 2 2 11 . 7 220 Prevented 50 | . . . . . . . 10 . . . . . . . . . 7 . 10 6 . 6 . . 11 Kills | -11 -10 -10 -10 -9 -8 -7 -7 -7 -7 -6 -6 -6 -6 -6 -6 -6 -5 -5 -5 -5 -5 -4 -4 -4 -4 ------- Run | Scr Mat Min Exi Min Mat Fac Low Low Dat Pro Fac Was Fac Low Low Zio Pro Fac Upp Upp Zhi Pro Fac Upp War Combat Hostiles Destroyed 188 | . . 5 5 1 16 26 13 7 . 1 16 . 8 13 10 . . 3 13 6 . 8 5 4 28 Guns 68 | . . . 4 1 . . 3 1 . . . . 8 10 6 . . 3 5 . . 2 . 4 21 Cannons 61 | . . 5 1 . 16 20 3 2 . . 10 . . . . . . . . . . 1 2 . 1 AOE 53 | . . . . . . 6 7 4 . 1 5 . . 3 4 . . . 8 3 . 4 3 . 5 Classes Destroyed 27 | . 2 1 3 1 8 3 1 . . . . . . . 2 . . . . . . 1 1 1 3 Worker 10 | . . . . . 1 2 . . . . 3 . 1 . . . . 1 . . . . 2 . . Builder 2 | . . . . . 1 1 . . . . . . . . . . . . . . . . . . . Hauler 13 | . 1 . . . 5 1 . . . . 1 . 2 . . . . . . . . . 3 . . Recycler 6 | . 1 . . . 3 . . . . . 2 . . . . . . . . . . . . . . Minesweeper 3 | . . . . . . . 1 . . . . . . . . . . . 1 . . 1 . . . Mechanic 2 | . . . . . . 1 . . . . . . . . . . . . . . . . . . 1 Operator 4 | . . . . . 1 . . . . . 1 . . . . . . . . . . . 2 . . Turret 1 | . . . 1 . . . . . . . . . . . . . . . . . . . . . . Watcher 4 | . . . . . 1 . . . . . 1 . 1 . . . . . . . . . 1 . . Swarmer 47 | . . 5 . . . 5 2 . . 1 3 . . 3 5 . . . 8 5 . 5 4 . 1 Cutter 1 | . . . . . . . . . . . . . . . . . . . . . . . 1 . . Saboteur 3 | . . . . . . . . . . . . . . . . . . . . . . . . . 3 Grunt 60 | . . . . . 7 13 4 5 . . 6 . 5 3 2 . . . 3 . . 2 . . 10 Brawler 14 | . . . . . . 1 4 1 . . . . 1 1 . . . . 1 1 . . . . 4 Duelist 6 | . . . . . 1 1 1 . . . . . . . 2 . . . 1 . . . . . . Protector 3 | . . . . . . . . . . . . . . . . . . . . . . . . . 3 Sentry 19 | . . . . . 7 1 2 . . . 4 . 2 1 1 . . . . . . . . 1 . Demolisher 2 | . . . . 1 . . . . . . . . . . . . . . . . . . . . 1 Hunter 7 | . . . . . 1 2 . . . . 2 . . . . . . . . . . . . . 2 Programmer 14 | . . . . . . 3 . 1 . . 1 . . 1 . . . 3 . . . . . 2 3 Behemoth 1 | . . . . . . . . . . . . . . . . . . . . . . 1 . . . Striker 1 | . . . . . . . . . . . . . . . . . . . . . . . . . 1 Zionite 7 | . . . 7 . . . . . . . . . . . . . . . . . . . . . . Decomposer 1 | . . . . . . . . . . . . . . . . . . . 1 . . . . . . Packrat 1 | . . . . . . . 1 . . . . . . . . . . . . . . . . . . Samaritan 1 | . . . . . . . . . . . . . . . 1 . . . . . . . . . . Tinkerer 1 | . . . . . . . . . . . . . . . 1 . . . . . . . . . . Assembled 4 | . . . 4 . . . . . . . . . . . . . . . . . . . . . . Thug 1 | . . . . . . . . . . . . . . 1 . . . . . . . . . . . Butcher 3 | . . . . . . . . . . . . . . 3 . . . . . . . . . . . Fireman 1 | . . . . . . . . . . . . . . . . . . . . . . . . 1 . Best Kill Streak 9 | . 2 3 4 1 4 4 5 3 . 1 6 . 4 4 7 . . 2 5 4 . 4 5 3 9 Combat Bots Only 8 | . . 3 4 1 2 3 5 3 . 1 4 . 4 4 7 . . 2 5 4 . 4 4 3 8 Max Kills in Single Turn 4 | . 1 1 1 1 2 2 2 2 . 1 4 . 2 2 2 . . 1 3 2 . 2 2 1 3 Gunslinging 1 | . . . . . . . . . . . . . . . . . . . . . . . . . 1 Exploded 3 | . . . . . . 2 2 2 . 1 2 . . 2 2 . . . 3 2 . 2 2 . 1 Melee . | . . . . . . . . . . . . . . . . . . . . . . . . . . Uniques/NPCs Destroyed 4 | . . . 4 . . . . . . . . . . . . . . . . . . . . . . 8R-AWN (-10/Exiles) EX-DEC (-10/Exiles) EX-BIN (-10/Exiles) EX-HEX (-10/Exiles) Combat | -11 -10 -10 -10 -9 -8 -7 -7 -7 -7 -6 -6 -6 -6 -6 -6 -6 -5 -5 -5 -5 -5 -4 -4 -4 -4 -------- Run | Scr Mat Min Exi Min Mat Fac Low Low Dat Pro Fac Was Fac Low Low Zio Pro Fac Upp Upp Zhi Pro Fac Upp War Damage Taken 16962 | . . 241 239 1028 831 1566 216 79 . 81 642 . 569 61 220 . 110 390 565 158 . 417 1173 243 8133 Core 1963 | . . 23 36 164 100 89 13 15 . 16 47 . 118 44 20 . . 18 90 . . 23 185 33 929 Absorbed by Shields 1184 | . . . . . 27 579 71 19 . 36 167 . 110 . . . . . . . . . . . 175 Core Remaining (%) 71 | 100 . . . 10 81 . . . . 81 . . . . . . 73 . . . . 86 . . . Volleys Fired 686 | . 3 10 56 10 70 73 67 22 . 2 62 6 30 20 24 . 1 14 38 24 2 47 10 12 83 Largest 3 | . 2 2 2 2 2 2 2 2 . 1 2 2 2 2 2 . 2 2 2 2 1 2 2 3 3 Hottest 260 | . 120 120 120 120 96 96 100 96 . 48 162 60 60 60 60 . 60 60 65 127 81 111 132 99 260 Shots Fired 1191 | . 5 18 102 19 136 141 97 25 . 2 96 11 61 39 44 . 2 28 52 25 2 69 12 36 169 Gun 598 | . . . 83 4 6 . 17 12 . . 9 11 61 37 40 . 2 28 48 3 . 52 . 36 149 Cannon 508 | . 5 18 19 15 130 136 59 5 . 1 83 . . . . . . . . 15 2 10 8 . 2 Launcher 69 | . . . . . . 5 5 8 . 1 4 . . 2 4 . . . 4 7 . 7 4 . 18 Special 16 | . . . . . . . 16 . . . . . . . . . . . . . . . . . . Kinetic 997 | . . . 89 10 136 136 76 17 . 1 70 11 61 37 40 . 2 28 37 3 . 52 4 36 151 Thermal 77 | . 5 18 11 9 . . 16 . . . . . . . . . . . . . . . . . 18 Explosive 29 | . . . . . . 5 5 8 . 1 4 . . 2 4 . . . . . . . . . . Electromagnetic 88 | . . . 2 . . . . . . . 22 . . . . . . . 15 22 2 17 8 . . Robot Hit Streak 30 | . 4 5 14 7 8 13 6 9 . . 10 3 13 10 7 . 1 5 9 4 4 30 5 21 15 Robot Miss Streak 6 | . . 6 5 2 5 3 5 2 . 2 4 4 2 2 3 . 1 2 2 4 . 2 1 1 3 Penetration Max 2 | . . . 1 . . . . 1 . . 1 1 2 2 1 . . . 1 . . . . 1 2 Secondary Targets 8 | . . . . . . . . . . . . . . 1 . . . . . . . . . 1 6 Max Gunslinging Chain 1 | . . . . . . . . . . . . . . 1 . . . . . . . . . 1 1 Shots Hit Robots 745 | . 4 7 64 9 78 92 54 14 . . 64 6 39 29 24 . 1 16 24 11 2 41 21 29 116 Core Hits 448 | . 2 5 30 1 45 52 31 18 . 4 48 1 18 22 22 . 1 4 21 6 1 14 13 8 81 Critical Kills 44 | . . . 3 1 . . 1 2 . . . . 11 7 3 . . 4 3 . . 1 . . 8 Critical Parts Destroyed 63 | . . . 4 . . . 1 1 . . 4 . 13 11 5 . 1 3 7 . . 2 1 1 9 Critical Strikes 140 | . . . 7 2 6 8 4 3 . . 5 2 25 19 9 . 1 7 10 . . 12 1 1 18 Destroy 122 | . . . 7 2 . . 2 3 . . 4 2 25 19 9 . 1 7 10 . . 12 . 1 18 Blast 17 | . . . . . 6 8 2 . . . 1 . . . . . . . . . . . . . . Smash 1 | . . . . . . . . . . . . . . . . . . . . . . . 1 . . Melee Attacks 57 | . . . . . 3 3 1 . . . . . . . 2 2 . 6 4 . . 2 30 . 4 Impact 39 | . . . . . 2 3 1 . . . . . . . 2 2 . 6 4 . . 2 17 . . Slashing 1 | . . . . . 1 . . . . . . . . . . . . . . . . . . . . Piercing 17 | . . . . . . . . . . . . . . . . . . . . . . . 13 . 4 Sneak Attacks 9 | . . . . . . . 1 . . . . . . . . . . . . . . . 8 . . Combat Hostiles . | . . . . . . . . . . . . . . . . . . . . . . . . . . Follow-up Attacks . | . . . . . . . . . . . . . . . . . . . . . . . . . . Damage Inflicted 27323 | . 87 132 1296 152 1953 3433 1646 885 . 188 3126 175 958 1081 981 . 39 294 984 475 44 1182 1497 856 5859 Guns 9950 | . . . 1003 29 81 . 178 112 . . 191 175 862 787 452 . 39 294 523 . . 663 . 856 3705 Cannons 8042 | . 71 132 141 123 1747 2518 758 88 . . 1630 . . . . . . . . 233 44 203 192 . 162 Explosions 7943 | . . . 152 . . 903 495 685 . 188 1305 . 96 294 529 . . . 461 242 . 316 288 . 1989 Melee 1041 | . . . . . . 11 91 . . . . . . . . . . . . . . . 939 . . Ramming 223 | . 16 . . . 125 1 . . . . . . . . . . . . . . . . 78 . 3 Kinetic 16408 | . . . 1038 63 1828 2518 936 200 . . 1374 175 862 787 452 . 39 294 412 . . 663 44 856 3867 Thermal 3564 | . 71 132 106 89 . . 124 . . . 853 . . . . . . . 136 . . 64 . . 1989 Explosive 3589 | . . . . . . 850 495 685 . 188 452 . 96 294 529 . . . . . . . . . . Electromagnetic 2498 | . . . 152 . . 53 . . . . 447 . . . . . . . 436 475 44 455 436 . . Impact 261 | . . . . . . 11 91 . . . . . . . . . . . . . . . 159 . . Slashing . | . . . . . . . . . . . . . . . . . . . . . . . . . . Piercing 780 | . . . . . . . . . . . . . . . . . . . . . . . 780 . . Highest Corruption 21 | . 2 2 8 . 4 1 . . . . 6 21 21 8 8 8 . 9 . 1 . . . . 13 Average Corruption 4 | . 1 2 3 . 2 1 . . . . 5 15 14 8 8 8 . 4 . 1 . . . . 3 Corruption Purged 39 | . . . 8 . 4 1 . . . . . . 13 . . . . 9 . 1 . . . . 3 Effects 144 | . . 10 30 . 1 2 . . . . 30 10 16 14 12 1 . 8 . . . . . . 10 Message Errors 40 | . . 6 9 . . . . . . . 7 4 3 5 2 1 . . . . . . . . 3 Matter Fused 23 | . . . 4 . . . . . . . 6 . 3 2 5 . . 3 . . . . . . . Heat Flow Errors 12 | . . 1 2 . . . . . . . 5 . 2 1 1 . . . . . . . . . . Energy Discharges 17 | . . 1 7 . . 2 . . . . 2 . 1 3 . . . 1 . . . . . . . Parts Rejected 2 | . . . . . . . . . . . . . . . 1 . . . . . . . . . 1 Data Loss (minor) 27 | . . 2 6 . 1 . . . . . 4 1 4 1 2 . . 4 . . . . . . 2 Data Loss (major) 6 | . . . . . . . . . . . 1 . 2 1 1 . . . . . . . . . 1 Misfires 5 | . . . 1 . . . . . . . 2 . 1 1 . . . . . . . . . . . Misdirections 5 | . . . . . . . . . . . . 4 . . . . . . . . . . . . 1 Weapon Failures 7 | . . . 1 . . . . . . . 3 1 . . . . . . . . . . . . 2 Overload Shots . | . . . . . . . . . . . . . . . . . . . . . . . . . . Overflow Damage 1003 | . . . . 7 32 57 116 41 . 20 268 . . 41 25 . . . 3 12 . 6 205 . 170 Projectiles 148 | . . . . 7 32 57 20 . . . 23 . . . . . . . . 3 . 6 . . . Explosions 601 | . . . . . . . 25 41 . 20 245 . . 41 25 . . . 3 9 . . 22 . 170 Melee 254 | . . . . . . . 71 . . . . . . . . . . . . . . . 183 . . Knockbacks 55 | . . . 2 1 19 27 3 . . . 2 . . . . . . . . . . . 1 . . Impact 1 | . . . . . . . 1 . . . . . . . . . . . . . . . . . . Kinetic 47 | . . . 2 1 14 25 2 . . . 2 . . . . . . . . . . . 1 . . Secondary 7 | . . . . . 5 2 . . . . . . . . . . . . . . . . . . . Self-Inflicted Damage 141 | . . . . . . 79 . . . 8 . . . . . . . . . . . 15 39 . . Shots 6 | . . . . . . 4 . . . 1 . . . . . . . . . . . 1 . . . Rammed 16 | . 2 . . . 9 2 . . . . . . . . . . . . . . . . 2 . 1 Targets Rammed 21 | . 2 . . . 14 2 . . . . . . . . . . . . . . . . 2 . 1 Kicked 3 | . . . . . 3 . . . . . . . . . . . . . . . . . . . . Crushed 2 | . . . . . 2 . . . . . . . . . . . . . . . . . . . . Highest Temperature 380 | . 120 380 279 9 18 16 5 . . . 279 . 271 127 190 . . . . 3 . 8 38 118 318 Average Temperature 85 | . 51 171 74 9 7 5 1 . . . 96 . 120 67 91 . . . . 2 . 6 20 51 143 Received Heat Transfer 2775 | . . 6 100 104 378 346 63 36 . 4 169 . 146 . 72 . . . 90 . . 24 136 140 961 Effects 2 | . . . . . . . . . . . . . . . . . . . . . . . . . 2 Interference 1 | . . . . . . . . . . . . . . . . . . . . . . . . . 1 Short Circuit 1 | . . . . . . . . . . . . . . . . . . . . . . . . . 1 Siege Activations . | . . . . . . . . . . . . . . . . . . . . . . . . . . Robots Corrupted 8 | . . . 1 . . . . . . . 1 . . . . . . . 1 3 . 2 . . . Combat Hostiles 5 | . . . . . . . . . . . 1 . . . . . . . . 3 . 1 . . . Parts Fried 20 | . . . . . . . 1 . . . 5 . . . . . . . 4 2 . 3 5 . . Impact Corruptions 8 | . . . . . 1 . 3 . . . . . . . . . . . . . . . 4 . . Robots Melted . | . . . . . . . . . . . . . . . . . . . . . . . . . . Combat Hostiles . | . . . . . . . . . . . . . . . . . . . . . . . . . . Parts Melted 7 | . . 1 . . . . . . . . . . . . . . . . . . . . . 1 5 Heat Transferred 5423 | . 148 259 222 185 . . 880 . . . 550 . . . . . . . 150 . . 100 . . 2929 Parts Sabotaged 3 | . . . . . . . . . . . . . . . . . . . . . . . . . 3 Parts Stolen . | . . . . . . . . . . . . . . . . . . . . . . . . . . Parts Stripped . | . . . . . . . . . . . . . . . . . . . . . . . . . . Power Chain Reactions 4 | . . . . . . 1 . . . . . . . . . . . . 2 . . 1 . . . Missiles Intercepted . | . . . . . . . . . . . . . . . . . . . . . . . . . . Latent Energy Used 400 | . . . 400 . . . . . . . . . . . . . . . . . . . . . . LE Corruption 6 | . . . 6 . . . . . . . . . . . . . . . . . . . . . . Alert | -11 -10 -10 -10 -9 -8 -7 -7 -7 -7 -6 -6 -6 -6 -6 -6 -6 -5 -5 -5 -5 -5 -4 -4 -4 -4 ------- Run | Scr Mat Min Exi Min Mat Fac Low Low Dat Pro Fac Was Fac Low Low Zio Pro Fac Upp Upp Zhi Pro Fac Upp War Peak Influence 1178 | . 50 70 . 20 361 786 . . . . 528 184 453 . . . . 261 . . . . 1178 . . Initial 184 | . . 11 . . 7 29 . . . . 31 184 114 . . . . . . . . . 12 . . Average 233 | . 12 28 . 11 115 496 . . . . 240 172 324 . . . . 87 . . . . 518 . . Maximum Alert Level 4 | . . . . . 1 3 . . . . 2 . 2 . . . . 1 . . . . 4 . . Low Security (%) 60 | 100 100 100 . 100 83 16 . . . . 45 100 4 . . . . 78 . . . . 27 . . Level 1 17 | . . . . . 16 8 . . . . 36 . 86 . . . . 21 . . . . 23 . . Level 2 14 | . . . . . . 52 . . . . 17 . 9 . . . . . . . . . 16 . . Level 3 7 | . . . . . . 22 . . . . . . . . . . . . . . . . 26 . . Level 4 . | . . . . . . . . . . . . . . . . . . . . . . . 5 . . Level 5 . | . . . . . . . . . . . . . . . . . . . . . . . . . . High Security . | . . . . . . . . . . . . . . . . . . . . . . . . . . Max Security . | . . . . . . . . . . . . . . . . . . . . . . . . . . Squads Dispatched 46 | . 1 1 . . 4 15 . . . . 7 . 3 . . . . 5 . . . . 10 . . Investigation 19 | . 1 . . . . 7 . . . . 3 . 2 . . . . 1 . . . . 5 . . Extermination 6 | . . . . . . 3 . . . . 1 . . . . . . 1 . . . . 1 . . Reinforcement 13 | . . . . . 1 3 . . . . 3 . 1 . . . . 3 . . . . 2 . . Assault 5 | . . 1 . . . 2 . . . . . . . . . . . . . . . . 2 . . Garrison 3 | . . . . . 3 . . . . . . . . . . . . . . . . . . . . Intercept . | . . . . . . . . . . . . . . . . . . . . . . . . . . Construction Impeded 1 | . . . . . . . . . . . . . 1 . . . . . . . . . . . . Haulers Reinforced 2 | . . . . . . 1 . . . . 1 . . . . . . . . . . . . . . Active Scanning Responses . | . . . . . . . . . . . . . . . . . . . . . . . . . . Cargo Convoy Interrupts 1 | . . . . . . 1 . . . . . . . . . . . . . . . . . . . Stealth | -11 -10 -10 -10 -9 -8 -7 -7 -7 -7 -6 -6 -6 -6 -6 -6 -6 -5 -5 -5 -5 -5 -4 -4 -4 -4 --------- Run | Scr Mat Min Exi Min Mat Fac Low Low Dat Pro Fac Was Fac Low Low Zio Pro Fac Upp Upp Zhi Pro Fac Upp War Distress Signals 8 | . . . . . 5 . . . . . 2 . . . . . . . . . . 1 . . . Communications Jammed 17 | . . . . . . . . . . . . . . . . . . . 1 . . 1 15 . . Distress Signals 17 | . . . . . . . . . . . . . . . . . . . 1 . . 1 15 . . Times Spotted 565 | . 2 7 73 22 36 48 20 10 . 9 28 6 12 14 13 . 2 8 27 9 . 14 42 4 159 Peak Tracking Total 23 | . 2 3 9 17 5 5 5 3 . 4 5 6 4 4 7 . 2 2 9 4 . 3 7 2 23 Tactical Retreats 48 | . . . 12 2 1 5 4 2 . . 1 . 1 1 2 . . . 3 1 . 2 3 . 8 Traps | -11 -10 -10 -10 -9 -8 -7 -7 -7 -7 -6 -6 -6 -6 -6 -6 -6 -5 -5 -5 -5 -5 -4 -4 -4 -4 ------- Run | Scr Mat Min Exi Min Mat Fac Low Low Dat Pro Fac Was Fac Low Low Zio Pro Fac Upp Upp Zhi Pro Fac Upp War Traps Triggered 13 | . 2 . . . 1 1 . . . . 2 . 3 . . . . 3 . . . . 1 . . Indirectly . | . . . . . . . . . . . . . . . . . . . . . . . . . . Trap Hack Attempts . | . . . . . . . . . . . . . . . . . . . . . . . . . . Triggered . | . . . . . . . . . . . . . . . . . . . . . . . . . . Disarmed 6 | . 6 . . . . . . . . . . . . . . . . . . . . . . . . Reprogrammed . | . . . . . . . . . . . . . . . . . . . . . . . . . . Reused 7 | . . . . . . . 2 . . . . . . . . . 1 . 1 1 . 1 . . 1 Traps Extracted . | . . . . . . . . . . . . . . . . . . . . . . . . . . Installed 26 | . . . . . 1 . 4 . . . . . . . . . 2 . 4 10 . 3 1 . 1 Triggered 38 | . . . . . 3 2 4 . . . . . . . . . 1 . 1 1 . 2 . . 24 Fabricated Traps 7 | . . . . . . . . . . . . . . . . . 2 . 4 . . . . . 1 Exploded 3 | . . . 3 . . . . . . . . . . . . . . . . . . . . . . Time Bombs Activated 7 | . . . . . . . . . . . . . . . . . . . . . . . . . 7 Exploded 7 | . . . . . . . . . . . . . . . . . . . . . . . . . 7 Machines | -11 -10 -10 -10 -9 -8 -7 -7 -7 -7 -6 -6 -6 -6 -6 -6 -6 -5 -5 -5 -5 -5 -4 -4 -4 -4 ---------- Run | Scr Mat Min Exi Min Mat Fac Low Low Dat Pro Fac Was Fac Low Low Zio Pro Fac Upp Upp Zhi Pro Fac Upp War Machines Disabled 39 | . . . 11 . 1 4 1 . . . 12 . 5 . 1 . . 2 . . . . 2 . . Max in Single Turn 4 | . . . 2 . 1 1 1 . . . 4 . 4 . 1 . . 1 . . . . 1 . . Garrison Access 3 | . . . . . . 1 . . . . . . . . . . . 1 . . . . 1 . . Machines Sabotaged . | . . . . . . . . . . . . . . . . . . . . . . . . . . Garrisons Compromised 1 | . . . . . . 1 . . . . . . . . . . . . . . . . . . . Overloaded Fab Kills . | . . . . . . . . . . . . . . . . . . . . . . . . . . Hacking | -11 -10 -10 -10 -9 -8 -7 -7 -7 -7 -6 -6 -6 -6 -6 -6 -6 -5 -5 -5 -5 -5 -4 -4 -4 -4 --------- Run | Scr Mat Min Exi Min Mat Fac Low Low Dat Pro Fac Was Fac Low Low Zio Pro Fac Upp Upp Zhi Pro Fac Upp War Machines Accessed 75 | . 4 1 2 . 15 13 1 1 3 . 11 . 4 . 2 . 1 3 . 1 4 . 6 . 3 Terminals 24 | . 3 . . . 10 3 . . . . 4 . 2 . . . 1 . . 1 . . . . . Fabricators 11 | . . . . . . 3 . . . . 3 . 1 . . . . 2 . . . . 2 . . Repair Stations 4 | . . . . . . 2 . . . . . . 1 . . . . . . . . . 1 . . Recycling Units 8 | . 1 . . . 2 1 . . . . 3 . . . . . . . . . . . 1 . . Scanalyzers 7 | . . . . . 2 3 . . . . 1 . . . . . . . . . . . 1 . . Garrison Access 4 | . . . . . 1 1 . . . . . . . . . . . 1 . . . . 1 . . Total Hacks 227 | . 17 1 2 . 52 40 1 1 25 . 24 . 9 . 2 . 1 10 . 1 17 . 15 . 9 Successful 131 | . 10 1 2 . 22 17 1 1 25 . 9 . 3 . 2 . 1 4 . 1 17 . 6 . 9 Failed 95 | . 6 . . . 30 23 . . . . 15 . 6 . . . . 6 . . . . 9 . . Catastrophic 20 | . . . . . 4 4 . . . . 5 . 2 . . . . 1 . . . . 4 . . Database Lockouts 1 | . 1 . . . . . . . . . . . . . . . . . . . . . . . . Manual 98 | . 12 . 1 . 26 6 . . . . 3 . 4 . . . . 20 . . . . 25 . 1 Terminals 68 | . 15 . . . 29 8 . . . . 10 . 4 . . . 1 . . 1 . . . . . Fabricators 29 | . . . . . . 7 . . . . 7 . 3 . . . . 8 . . . . 4 . . Repair Stations 10 | . . . . . . 5 . . . . . . 2 . . . . . . . . . 3 . . Recycling Units 18 | . 2 . . . 7 4 . . . . 4 . . . . . . . . . . . 1 . . Scanalyzers 30 | . . . . . 11 13 . . . . 3 . . . . . . . . . . . 3 . . Garrison Access 14 | . . . . . 5 3 . . . . . . . . . . . 2 . . . . 4 . . Terminal Hacks 79 | . 8 1 2 . 8 1 1 1 25 . 2 . . . 2 . 1 . . 1 17 . . . 9 Record 24 | . . . 1 . . . . 1 6 . . . . . . . 1 . . 1 5 . . . 9 Part Schematic 15 | . . . . . . . . . 11 . . . . . . . . . . . 4 . . . . Robot Schematic 5 | . . . . . . . . . 5 . . . . . . . . . . . . . . . . Robot Analysis 6 | . 2 . . . . . . . . . . . . . . . . . . . 4 . . . . Prototype ID Bank 7 | . . . . . . . . . 3 . . . . . . . . . . . 4 . . . . Open Door 4 | . . 1 . . . . 1 . . . . . . . 2 . . . . . . . . . . Branch Access Points 3 | . . . . . 1 1 . . . . 1 . . . . . . . . . . . . . . Emergency Access Points 1 | . . . . . 1 . . . . . . . . . . . . . . . . . . . . Scanalyzer Index 1 | . . . . . 1 . . . . . . . . . . . . . . . . . . . . Unreport Threat 2 | . . . . . 2 . . . . . . . . . . . . . . . . . . . . Locate Traps 1 | . . . . . 1 . . . . . . . . . . . . . . . . . . . . Disarm Traps 1 | . 1 . . . . . . . . . . . . . . . . . . . . . . . . Dispatch Records 1 | . 1 . . . . . . . . . . . . . . . . . . . . . . . . Patrol Status 1 | . 1 . . . . . . . . . . . . . . . . . . . . . . . . Investigation Status 1 | . 1 . . . . . . . . . . . . . . . . . . . . . . . . Zone Layout 5 | . 2 . . . 2 . . . . . 1 . . . . . . . . . . . . . . EX-Prototype ID Bank 1 | . . . 1 . . . . . . . . . . . . . . . . . . . . . . Fabricator Hacks 13 | . . . . . . 5 . . . . 3 . 1 . . . . 2 . . . . 2 . . Load Schematic 10 | . . . . . . 3 . . . . 2 . 1 . . . . 2 . . . . 2 . . Build 3 | . . . . . . 2 . . . . 1 . . . . . . . . . . . . . . Repair Station Hacks 5 | . . . . . . 3 . . . . . . 1 . . . . . . . . . 1 . . Scan Component 4 | . . . . . . 2 . . . . . . 1 . . . . . . . . . 1 . . Repair 1 | . . . . . . 1 . . . . . . . . . . . . . . . . . . . Recycling Unit Hacks 6 | . 1 . . . 2 1 . . . . 2 . . . . . . . . . . . . . . Process 1 | . . . . . . 1 . . . . . . . . . . . . . . . . . . . Retrieve Components 5 | . 1 . . . 2 . . . . . 2 . . . . . . . . . . . . . . Scanalyzer 17 | . . . . . 7 6 . . . . 1 . . . . . . . . . . . 3 . . Insert Component 9 | . . . . . 3 4 . . . . 1 . . . . . . . . . . . 1 . . Analyze 8 | . . . . . 4 2 . . . . . . . . . . . . . . . . 2 . . Garrison Access Hacks 1 | . . . . . . . . . . . . . . . . . . 1 . . . . . . . Seal Access 1 | . . . . . . . . . . . . . . . . . . 1 . . . . . . . Unauthorized Hacks 10 | . 1 . . . 5 1 . . . . 1 . 1 . . . . 1 . . . . . . . Terminals 4 | . . . . . 2 . . . . . 1 . 1 . . . . . . . . . . . . Botnet 4 | . . . . . 2 . . . . . 1 . 1 . . . . . . . . . . . . Fabricators 1 | . . . . . . . . . . . . . . . . . . 1 . . . . . . . Haulers 1 | . . . . . . . . . . . . . . . . . . 1 . . . . . . . Repair Stations . | . . . . . . . . . . . . . . . . . . . . . . . . . . Recycling Units 3 | . 1 . . . 2 . . . . . . . . . . . . . . . . . . . . Mask 2 | . . . . . 2 . . . . . . . . . . . . . . . . . . . . Tunnel 1 | . 1 . . . . . . . . . . . . . . . . . . . . . . . . Scanalyzers . | . . . . . . . . . . . . . . . . . . . . . . . . . . Garrison Access 2 | . . . . . 1 1 . . . . . . . . . . . . . . . . . . . Reprogram 1 | . . . . . 1 . . . . . . . . . . . . . . . . . . . . Jam 1 | . . . . . . 1 . . . . . . . . . . . . . . . . . . . Data Cores Recovered . | . . . . . . . . . . . . . . . . . . . . . . . . . . Used . | . . . . . . . . . . . . . . . . . . . . . . . . . . Hacking Detections 50 | . 2 . . . 13 13 . . . . 10 . 4 . . . 1 1 . . . . 6 . . Full Trace Events 19 | . 1 . . . 3 6 . . . . 3 . 2 . . . . 1 . . . . 3 . . Feedback Events 3 | . . . . . . 2 . . . . 1 . . . . . . . . . . . . . . Corruption 2 | . . . . . . 1 . . . . 1 . . . . . . . . . . . . . . Hackware Fried 1 | . . . . . . 1 . . . . . . . . . . . . . . . . . . . Feedback Blocked . | . . . . . . . . . . . . . . . . . . . . . . . . . . Robot Schematics Acquired 13 | . . . . . . . . . 5 . . . . . . 4 . 4 . . . . . . . Robots Built . | . . . . . . . . . . . . . . . . . . . . . . . . . . Authchips . | . . . . . . . . . . . . . . . . . . . . . . . . . . Time . | . . . . . . . . . . . . . . . . . . . . . . . . . . Total Robot Build Rating . | . . . . . . . . . . . . . . . . . . . . . . . . . . Part Schematics Acquired 43 | . . . . . 2 2 . . 11 . . . . . . 12 . . . . 4 . 12 . . Parts Built 6 | . . . . . . 4 . . . . 2 . . . . . . . . . . . . . . Authchips . | . . . . . . . . . . . . . . . . . . . . . . . . . . Time 256 | . . . . . . 192 . . . . 64 . . . . . . . . . . . . . . Total Part Build Rating 48 | . . . . . . 32 . . . . 16 . . . . . . . . . . . . . . Parts Repaired 1 | . . . . . . 1 . . . . . . . . . . . . . . . . . . . Time 37 | . . . . . . 37 . . . . . . . . . . . . . . . . . . . Parts Recycled . | . . . . . . . . . . . . . . . . . . . . . . . . . . Recycled Matter 234 | . . . . . . 234 . . . . . . . . . . . . . . . . . . . Retrieved Matter . | . . . . . . . . . . . . . . . . . . . . . . . . . . Retrieved Components 17 | . . . . . 12 . . . . . 5 . . . . . . . . . . . . . . Parts Scanalyzed 8 | . . . . . 3 3 . . . . 1 . . . . . . . . . . . 1 . . Part Schematics Acquired 5 | . . . . . 2 2 . . . . . . . . . . . . . . . . 1 . . Parts Damaged . | . . . . . . . . . . . . . . . . . . . . . . . . . . Bothacking | -11 -10 -10 -10 -9 -8 -7 -7 -7 -7 -6 -6 -6 -6 -6 -6 -6 -5 -5 -5 -5 -5 -4 -4 -4 -4 ------------ Run | Scr Mat Min Exi Min Mat Fac Low Low Dat Pro Fac Was Fac Low Low Zio Pro Fac Upp Upp Zhi Pro Fac Upp War Used RIF Installer . | . . . . . . . . . . . . . . . . . . . . . . . . . . Robots Hacked . | . . . . . . . . . . . . . . . . . . . . . . . . . . Non-combat . | . . . . . . . . . . . . . . . . . . . . . . . . . . Combat . | . . . . . . . . . . . . . . . . . . . . . . . . . . Robot Hacks Applied . | . . . . . . . . . . . . . . . . . . . . . . . . . . Relay Couplers Released 1 | . . . . . . . . . . . . . . . . . . . . . . . 1 . . Machine Destruction 1 | . . . . . . . . . . . . . . . . . . . . . . . 1 . . Robots Rewired 13 | . . . . . . 1 1 . . . . . . . . . . 2 3 . . . 1 . 5 Allies Hacked 2 | . . . . . . . . . . . . . . . . . . 2 . . . . . . . Hacks Repelled . | . . . . . . . . . . . . . . . . . . . . . . . . . . Allies | -11 -10 -10 -10 -9 -8 -7 -7 -7 -7 -6 -6 -6 -6 -6 -6 -6 -5 -5 -5 -5 -5 -4 -4 -4 -4 -------- Run | Scr Mat Min Exi Min Mat Fac Low Low Dat Pro Fac Was Fac Low Low Zio Pro Fac Upp Upp Zhi Pro Fac Upp War Total Allies 34 | . . . . . 1 1 1 . . 1 . 1 . . . 4 . 6 3 . . . 11 . 5 Largest Group 9 | . . . . . 1 1 1 1 1 2 2 1 . . . 4 4 5 4 2 1 . 9 1 5 Highest-Rated Group 356 | . . . . . 15 16 64 64 64 159 159 31 . . . 151 151 258 172 58 22 . 356 39 249 Highest-Rated Ally 95 | . . . . . 15 16 64 64 64 95 95 31 . . . 40 40 85 85 30 22 . 47 39 56 Zionite Dispatches 6 | . . . . . . . . . . . . . . . . . . 3 . . . . 3 . . Heavy 1 | . . . . . . . . . . . . . . . . . . 1 . . . . . . . Fire 3 | . . . . . . . . . . . . . . . . . . . . . . . 3 . . Offense Resupply 1 | . . . . . . . . . . . . . . . . . . 1 . . . . . . . Hacking Resupply 1 | . . . . . . . . . . . . . . . . . . 1 . . . . . . . Total Orders 59 | . . . 5 . . . . 2 2 2 3 . . . . . 3 8 8 11 2 2 . 5 6 STAY 23 | . . . . . . . . 1 1 1 2 . . . . . . 4 4 6 1 . . 1 2 FOLLOW 18 | . . . . . . . . 1 1 1 1 . . . . . . 2 3 4 1 . . . 4 DROP 2 | . . . . . . . . . . . . . . . . . . 1 . 1 . . . . . EXPLORE 4 | . . . . . . . . . . . . . . . . . . . . . . . . 4 . RETURN 12 | . . . 5 . . . . . . . . . . . . . 3 1 1 . . 2 . . . Ally Attacks 371 | . . . 58 . 11 15 . . . 25 10 6 . . . . 28 10 44 . . 10 112 2 40 Total Damage 7358 | . . . 331 . 199 174 . . . 896 333 103 . . . . 380 553 977 . . 63 1928 41 1380 Kills 64 | . . . 3 . 3 1 . . . 8 3 . . . . . 1 2 9 . . . 24 . 10 Allies Corrupted 4 | . . . . . . . . . . . . . . . . . . 1 . 1 . 1 1 . . Allies Melted 1 | . . . . . . . . . . . . . . . . . . . . . . . . . 1 Intel | -11 -10 -10 -10 -9 -8 -7 -7 -7 -7 -6 -6 -6 -6 -6 -6 -6 -5 -5 -5 -5 -5 -4 -4 -4 -4 ------- Run | Scr Mat Min Exi Min Mat Fac Low Low Dat Pro Fac Was Fac Low Low Zio Pro Fac Upp Upp Zhi Pro Fac Upp War Robot Analysis Total 6 | . 2 . . . . . . . . . . . . . . . . . . . 4 . . . . Derelict Logs Recovered 20 | . . 2 . 1 . . 1 1 . . . . . 3 2 1 1 . 1 2 . 2 . 3 . Drone Launches 45 | . . . 21 . . . . . . . . . . . . . 8 2 5 . . 7 . 2 . Drone Recoveries 44 | . . . 21 . . . . . . . . . . . . . 7 2 5 . . 7 . 2 . Zionite Intel Received 7 | . . . . . . . . . . . . . . . . . . 3 . . . . 4 . . Emergency Access 1 | . . . . . . . . . . . . . . . . . . . . . . . 1 . . Component Stockpiles 1 | . . . . . . . . . . . . . . . . . . 1 . . . . . . . Prototype Schematics 1 | . . . . . . . . . . . . . . . . . . . . . . . 1 . . Unaware Schematics 1 | . . . . . . . . . . . . . . . . . . 1 . . . . . . . Unaware Analyses 2 | . . . . . . . . . . . . . . . . . . . . . . . 2 . . Active Garrisons 1 | . . . . . . . . . . . . . . . . . . 1 . . . . . . . Exploration | -11 -10 -10 -10 -9 -8 -7 -7 -7 -7 -6 -6 -6 -6 -6 -6 -6 -5 -5 -5 -5 -5 -4 -4 -4 -4 ------------- Run | Scr Mat Min Exi Min Mat Fac Low Low Dat Pro Fac Was Fac Low Low Zio Pro Fac Upp Upp Zhi Pro Fac Upp War Turns Passed 23307 | 7 444 1223 2155 194 2313 1918 2041 1223 56 535 956 121 442 569 481 764 665 869 1355 1247 112 723 884 456 1554 Spaces Moved 20949 | 3 193 472 880 85 1206 1117 2185 1389 79 519 903 153 321 749 573 1045 487 1025 1721 1526 159 814 1018 652 1675 Core 14 | . . . . . . . . . . . . . . . . . . . . . . . . . 14 Treads 2097 | 3 193 472 396 13 962 39 . . . . . . . . . . . . . . . . . . 19 Legs 487 | . . . 171 72 244 . . . . . . . . . . . . . . . . . . . . Wheels 1196 | . . . 313 . . 883 . . . . . . . . . . . . . . . . . . . Hover 17155 | . . . . . . 195 2185 1389 79 519 903 153 321 749 573 1045 487 1025 1721 1526 159 814 1018 652 1642 Flight . | . . . . . . . . . . . . . . . . . . . . . . . . . . Fastest Speed 28 | 160 160 240 90 120 126 68 68 68 68 68 60 64 64 64 64 64 64 60 60 60 60 60 53 55 28 Average Speed 82 | 160 210 240 196 178 154 132 68 68 68 68 63 64 64 64 64 65 72 60 60 60 60 60 57 55 52 Slowest Speed 560 | 160 240 240 560 240 260 160 68 68 68 68 68 64 64 64 64 134 134 60 60 60 60 60 64 55 430 Overloaded Moves 107 | . . . . . . . . . . . . . . . . . . . . . . . . . 107 Propulsion Burnouts . | . . . . . . . . . . . . . . . . . . . . . . . . . . Robots Hopped . | . . . . . . . . . . . . . . . . . . . . . . . . . . Cave-ins Triggered . | . . . . . . . . . . . . . . . . . . . . . . . . . . Teleports 1 | . . . . . . . . . . . . . . . . . . . . . . . . . 1 Exploration Rate (%) 62 | 3 38 87 90 26 81 19 94 96 69 64 26 91 9 87 70 88 51 16 97 96 60 60 24 86 85 Regions Visited 25 Branch Regions 17 Pre-discovered Areas 12 | . 1 1 1 1 . . . . 1 . . . . . . 1 . . . 1 3 . . 1 1 Known Exits Taken 17 | . . . . . . 1 1 1 1 1 . . 1 1 1 1 1 1 1 1 1 1 1 1 . Unknown Exits Taken 6 | 1 1 1 1 1 1 . . . . . . . . . . . . . . . . . . . . Scrap Searched 31 | . . 1 . 2 . . 4 2 . 1 . . . 3 2 4 2 . 4 3 . 1 . 2 . Spaces Dug 67 | . . . . . 3 14 . . . . 10 . . . 1 . . 4 16 . . 10 9 . . Terrain Destroyed 451 | . . . 10 1 16 51 57 78 . 8 63 . 22 30 34 . . 6 20 . . 15 9 3 28 Melee 24 | . . . . . 3 2 . . . . . . . . 1 . . 4 4 . . 1 9 . . Projectile 114 | . . . 10 1 13 12 12 3 . . 6 . 5 3 3 . . . 12 . . 9 . 3 22 AOE 307 | . . . . . . 37 45 75 . 8 57 . 17 27 30 . . . 1 . . 4 . . 6 Terrain Rammed . | . . . . . . . . . . . . . . . . . . . . . . . . . . Walls Destroyed . | . . . . . . . . . . . . . . . . . . . . . . . . . . Machines Disabled . | . . . . . . . . . . . . . . . . . . . . . . . . . . Actions | -11 -10 -10 -10 -9 -8 -7 -7 -7 -7 -6 -6 -6 -6 -6 -6 -6 -5 -5 -5 -5 -5 -4 -4 -4 -4 --------- Run | Scr Mat Min Exi Min Mat Fac Low Low Dat Pro Fac Was Fac Low Low Zio Pro Fac Upp Upp Zhi Pro Fac Upp War Total 25650 | 4 226 548 1223 108 1516 1411 2618 1633 80 696 1186 163 498 797 634 1125 799 1238 1986 1834 173 975 1252 731 2196 Wait 2939 | . 2 44 157 2 130 150 322 199 2 171 174 5 110 20 16 55 286 136 170 245 . 75 125 66 277 Move 20926 | 2 192 471 879 84 1205 1117 2184 1388 78 518 903 152 320 748 572 1044 486 1024 1720 1525 158 813 1017 651 1675 Hop . | . . . . . . . . . . . . . . . . . . . . . . . . . . Pick Up 187 | . 15 7 47 4 20 9 4 2 . . 9 . 3 2 2 3 4 3 3 11 2 10 10 . 17 Fast Attach 127 | . 3 4 11 . 7 7 5 2 . . 8 . 8 . 1 5 3 6 4 . 3 2 17 1 30 Attach 45 | . . . 3 4 5 4 . . . . 1 . 2 . . 3 2 2 3 . 1 1 5 . 9 Detach 45 | . 3 . 7 . 3 . 1 . . . . . 3 . . 3 1 3 5 . 1 . 6 . 9 Swap 234 | 2 1 1 27 3 28 19 16 16 . 5 17 . 2 6 13 3 5 10 15 7 1 11 9 . 17 Drop 252 | . 5 11 36 1 29 23 8 4 . . 12 . 8 1 4 7 9 6 10 12 4 11 14 1 36 Fire 686 | . 3 10 56 10 70 73 67 22 . 2 62 6 30 20 24 . 1 14 38 24 2 47 10 12 83 Melee 57 | . . . . . 3 3 1 . . . . . . . 2 2 . 6 4 . . 2 30 . 4 Ram 2 | . . . . . . . . . . . . . . . . . . . . . . . 2 . . Kick 3 | . . . . . 3 . . . . . . . . . . . . . . . . . . . . Crush 15 | . 2 . . . 11 1 . . . . . . . . . . . . . . . . . . 1 Escape Stasis 13 | . . . . . 1 . . . . . . . 12 . . . . . . . . . . . . Rewire 86 | . . . . . . 5 6 . . . . . . . . . . 28 10 . 1 . 6 . 30 Trap 33 | . . . . . 1 . 4 . . . . . . . . . 2 . 4 10 . 3 1 . 8 Miscellaneous . | . . . . . . . . . . . . . . . . . . . . . . . . . . Route ------- -11/Scrapyard -10/Materials (discovered 2 exits: [*Mat] / *Min) -10/Mines (discovered 2 exits: [*Mat] / *Exi) -10/Exiles -9/Mines -8/Materials (discovered 2 exits: *Fac x2) -7/Factory (discovered 4 exits: Sto x2 / *Low x2) -7/Lower Caves -7/Lower Caves (discovered 2 exits: *Fac / *Dat) -7/Data Miner -6/Proximity Caves -6/Factory (discovered 3 exits: *Fac / *Low x2) -6/Waste -6/Factory -6/Lower Caves -6/Lower Caves (discovered 2 exits: *Fac / *Zio) -6/Zion -5/Proximity Caves -5/Factory (discovered 3 exits: Fac x2 / *Upp) -5/Upper Caves -5/Upper Caves (discovered 2 exits: *Fac / *Zhi) -5/Zhirov -4/Proximity Caves -4/Factory (discovered 3 exits: *Upp / Ext / Arm) -4/Upper Caves -4/Warlord History --------- Turn | Location | Event 4 | -11/Scrapyard | Discovered new exit (range 1) 8 | -11/Scrapyard | Entered Materials 238 | -10/Materials | Central database locked down 238 | -10/Materials | Discovered new exit (range 17) 308 | -10/Materials | Build established: Mutant 423 | -10/Materials | Discovered new exit (range 12) 452 | -10/Materials | Entered Mines 508 | -10/Mines | Deemed a non-threat by the Exiles lab entrance 599 | -10/Mines | Found a hidden stash of uninstalled traps 770 | -10/Mines | Met a Derelict testing a Signal Generator 782 | -10/Mines | Found Signal Generator 1068 | -10/Mines | Learned Materials emergency access door positions 1224 | -10/Mines | Discovered new exit (range 13) 1282 | -10/Mines | Found the Drone Emporium 1296 | -10/Mines | Found Prototype Device 1296 | -10/Mines | Identified Thief Drone Bay 1302 | -10/Mines | Learned location of Zion (-6) 1579 | -10/Mines | A weapon hastily lodged in a ceiling crevice suddenly fell to the ground 1665 | -10/Mines | Discovered new exit (range 5) 1675 | -10/Mines | Entered Exiles 1739 | -10/Exiles | Met 8R-AWN 1775 | -10/Exiles | Met EX-HEX 2194 | -10/Exiles | Build established: Hauler-Mutant 2209 | -10/Exiles | Met EX-DEC 2277 | -10/Exiles | Met EX-BIN 2304 | -10/Exiles | Aligned with FarCom system 2306 | -10/Exiles | Given EX-Vault access code 2351 | -10/Exiles | Opened EX-Vault 2363 | -10/Exiles | Found Potential Leg 2366 | -10/Exiles | Found Potential Leg 2370 | -10/Exiles | Found Latent Energy Streamer 2414 | -10/Exiles | Warned to stay clear of 0b10 Research branches 2537 | -10/Exiles | Discovered new exit (range 15) 2702 | -10/Exiles | Attacked by the Exiles 2805 | -10/Exiles | Found AS-neutralizer No. 17b 2863 | -10/Exiles | Destroyed 8R-AWN 2887 | -10/Exiles | Build established: Mutant 2944 | -10/Exiles | Found 8R-AWN's Boregun 2945 | -10/Exiles | Found 8R-AWN's Boregun 3032 | -10/Exiles | Allies destroyed EX-DEC 3055 | -10/Exiles | Allies destroyed EX-BIN 3114 | -10/Exiles | Destroyed EX-HEX 3142 | -10/Exiles | Found Prototype Device 3142 | -10/Exiles | Identified System Purifier 3830 | -10/Exiles | Entered Mines 3831 | -9/Mines | Assembled infested the area 3836 | -9/Mines | Assisted by a Guerilla fighting off Assembled 3867 | -9/Mines | Core integrity fell below 50% 3909 | -9/Mines | Core integrity fell below 20% 3993 | -9/Mines | Discovered new exit (range 12) 4024 | -9/Mines | Entered Materials 4024 | -8/Materials | Evolved 4 slots: Propulsion x2, Utility x2 4782 | -8/Materials | Garrison activated, responded to threat 5446 | -8/Materials | Discovered new exit (range 14) 6294 | -8/Materials | Discovered new exit (range 13) 6337 | -8/Materials | Entered Factory 6337 | -7/Factory | Evolved 2 slots: Utility x2 6735 | -7/Factory | Fabricated Cmb. Antigrav System? 6972 | -7/Factory | Identified exit to Storage 6972 | -7/Factory | Identified exit to Lower Caves 7137 | -7/Factory | First assault squad dispatched 7197 | -7/Factory | Repaired Broken Exp. Heat Sink 7539 | -7/Factory | EX Chip 2 fried by hacking feedback 7936 | -7/Factory | Cargo convoy interrupted 8051 | -7/Factory | Fabricated Cmb. Antigrav System (x2) 8255 | -7/Factory | Entered Lower Caves 8269 | -7/Lower Caves | Attracted the attention of an 0b10 outpost 8421 | -7/Lower Caves | Encountered a Warlord checkpoint 9071 | -7/Lower Caves | Discovered new exit (range 6) 9273 | -7/Lower Caves | Attracted the attention of an 0b10 checkpoint 10208 | -7/Lower Caves | Identified exit to Lower Caves 10296 | -7/Lower Caves | Entered another Lower Caves area 10296 | -7/Lower Caves | Accompanied by 1 ally 10309 | -7/Lower Caves | Learned 8 Factory zone layouts 10384 | -7/Lower Caves | Discovered new exit (range 13) 10896 | -7/Lower Caves | Discovered new exit (range 14) 11483 | -7/Lower Caves | Identified exit to Data Miner 11519 | -7/Lower Caves | Entered Data Miner 11519 | -7/Data Miner | Accompanied by 1 ally 11519 | -7/Data Miner | Discovered new exit (range 6) 11534 | -7/Data Miner | Met Data Miner 11548 | -7/Data Miner | Learned location of Section 7 (-2) 11548 | -7/Data Miner | Acquired the access code to Warlord's prototype stash 11558 | -7/Data Miner | Received God Mode back door access code from Data Miner 11573 | -7/Data Miner | Identified exit to Proximity Caves 11575 | -7/Data Miner | Entered Proximity Caves 11575 | -6/Proximity Caves | Accompanied by 1 ally 11705 | -6/Proximity Caves | Escorted by Enhanced Grunt 11732 | -6/Proximity Caves | Attracted the attention of an 0b10 checkpoint 12007 | -6/Proximity Caves | Discovered new exit (range 5) 12009 | -6/Proximity Caves | Identified exit to Factory 12110 | -6/Proximity Caves | Entered Factory 12110 | -6/Factory | Accompanied by 2 allies 12110 | -6/Factory | Evolved 2 slots: Power x1, Propulsion x1 12131 | -6/Factory | Incoming investigation squad redirected 12462 | -6/Factory | Found Exp. Targeting Computer 12468 | -6/Factory | Found Faulty Exp. Targeting Computer 12474 | -6/Factory | Found Exp. Targeting Computer 12539 | -6/Factory | Discovered new exit (range 9) 12564 | -6/Factory | Identified exit to Factory 12625 | -6/Factory | Identified exit to Lower Caves 12866 | -6/Factory | Fabricated Cmb. Antigrav System? 13028 | -6/Factory | Incoming investigation squad redirected 13055 | -6/Factory | Incoming investigation squad redirected 13066 | -6/Factory | Sucked down chute 13066 | -6/Factory | Entered Waste 13067 | -6/Waste | Met a frightened Derelict 13081 | -6/Waste | EMP discharged 13081 | -6/Waste | System corruption reached 10% 13091 | -6/Waste | Spotted C-40 Crusher 13104 | -6/Waste | Spotted C-40 Crusher 13104 | -6/Waste | Spotted C-40 Crusher 13104 | -6/Waste | Spotted C-40 Crusher 13111 | -6/Waste | Spotted C-40 Crusher 13127 | -6/Waste | Spotted C-40 Crusher 13177 | -6/Waste | Discovered new exit (range 16) 13181 | -6/Waste | EMP discharged 13186 | -6/Waste | Identified exit to Factory 13187 | -6/Waste | Entered Factory 13189 | -6/Factory | Build established: Machinist-Mutant 13588 | -6/Factory | Discovered exit to Lower Caves (range 3) 13629 | -6/Factory | Entered Lower Caves 13725 | -6/Lower Caves | Identified exit to Lower Caves 13737 | -6/Lower Caves | Ambushed by wild Derelicts 13810 | -6/Lower Caves | Encountered a Warlord checkpoint 13844 | -6/Lower Caves | Attracted the attention of an 0b10 checkpoint 13914 | -6/Lower Caves | Learned location of 1 exit from Factory 13996 | -6/Lower Caves | Build established: Scavenger-Mutant 14045 | -6/Lower Caves | Learned 12 Factory zone layouts 14198 | -6/Lower Caves | Entered another Lower Caves area 14256 | -6/Lower Caves | Attracted the attention of an 0b10 checkpoint 14308 | -6/Lower Caves | Discovered exit to Factory (range 3) 14315 | -6/Lower Caves | Destroyed 7 combat bots 14348 | -6/Lower Caves | Identified exit to Zion 14523 | -6/Lower Caves | Found Prototype Device 14635 | -6/Lower Caves | Learned 4 Factory zone layouts 14679 | -6/Lower Caves | Entered Zion 14705 | -6/Zion | System corruption cleaned by Quarantine Array 14723 | -6/Zion | Discovered new exit (range 15) 14954 | -6/Zion | Visited the Megawrench Repair Shop 14954 | -6/Zion | Megawrench repaired 11 parts 14989 | -6/Zion | Imprinted 14991 | -6/Zion | Declared Zion's savior 15142 | -6/Zion | Found GAL Module 15157 | -6/Zion | Given A8's code to call for help 15230 | -6/Zion | Found Prototype Device 15230 | -6/Zion | Identified Bomb Factory No. 2 15415 | -6/Zion | Identified exit to Proximity Caves 15443 | -6/Zion | Entered Proximity Caves 15443 | -5/Proximity Caves | Accompanied by 4 allies 15467 | -5/Proximity Caves | Learned 12 Factory zone layouts 15475 | -5/Proximity Caves | Spotted B-75 Beast 15500 | -5/Proximity Caves | Allies destroyed B-75 Beast 15751 | -5/Proximity Caves | Received a Behemoth hack from an annoying Tinkerer 16105 | -5/Proximity Caves | Discovered exit to Factory (range 4) 16108 | -5/Proximity Caves | Entered Factory 16108 | -5/Factory | Evolved 2 slots: Propulsion x1, Utility x1 16109 | -5/Factory | Identified exit to Factory 16110 | -5/Factory | Identified exit to Upper Caves 16187 | -5/Factory | Retrieved Zion intel report: Active Garrisons 16367 | -5/Factory | Retrieved Zion intel report: Component Stockpiles 16402 | -5/Factory | Build established: Machinist-Mutant 16402 | -5/Factory | Retrieved Zion intel report: Unaware Schematics 16403 | -5/Factory | Zion Hacking Resupply teleported in 16463 | -5/Factory | Incoming investigation squad redirected 16581 | -5/Factory | Zion Heavy squad teleported in 16759 | -5/Factory | Found Prototype Launcher 16759 | -5/Factory | Identified Tesla Bomb Launcher 16956 | -5/Factory | Zion Offense Resupply teleported in 16977 | -5/Factory | Entered Upper Caves 16977 | -5/Upper Caves | Accompanied by 3 allies 17352 | -5/Upper Caves | Encountered a Warlord checkpoint 17952 | -5/Upper Caves | Found Prototype Protection 17952 | -5/Upper Caves | Identified Zio. Weapon Casing 17996 | -5/Upper Caves | Learned 12 Factory zone layouts 18068 | -5/Upper Caves | Spotted B-75 Beast 18113 | -5/Upper Caves | Allies destroyed B-75 Beast 18137 | -5/Upper Caves | Discovered new exit (range 4) 18319 | -5/Upper Caves | Identified exit to Upper Caves 18332 | -5/Upper Caves | Entered another Upper Caves area 18332 | -5/Upper Caves | Accompanied by 2 allies 18350 | -5/Upper Caves | Discovered exit to Factory (range 14) 18413 | -5/Upper Caves | Build established: Scavenger-Mutant 19182 | -5/Upper Caves | Learned Factory terminal intel 19197 | -5/Upper Caves | Build established: Machinist-Mutant 19206 | -5/Upper Caves | Discovered new exit (range 15) 19213 | -5/Upper Caves | Identified exit to Zhirov 19303 | -5/Upper Caves | Learned location of Armory (-4) 19579 | -5/Upper Caves | Entered Zhirov 19579 | -5/Zhirov | Accompanied by 1 ally 19579 | -5/Zhirov | Discovered new exit (range 3) 19580 | -5/Zhirov | Identified exit to Proximity Caves 19590 | -5/Zhirov | Met Zhirov 19605 | -5/Zhirov | Learned location of Quarantine (-3) 19605 | -5/Zhirov | Learned location of Testing (-2) 19605 | -5/Zhirov | Learned location of Command (-1) 19609 | -5/Zhirov | Zhirov requested help retrieving the SGEMP Prototype 19624 | -5/Zhirov | Found Alien Artifact 19624 | -5/Zhirov | Identified Integrated Reactor 19624 | -5/Zhirov | Installed Integrated Reactor, increased core energy generation (+10) 19666 | -5/Zhirov | Found Alien Artifact 19691 | -5/Zhirov | Entered Proximity Caves 19691 | -4/Proximity Caves | Accompanied by 1 ally 19812 | -4/Proximity Caves | Spotted B-86 Titan 20064 | -4/Proximity Caves | Destroyed B-86 Titan 20398 | -4/Proximity Caves | Learned location of 1 exit from Research 20414 | -4/Proximity Caves | Entered Factory 20414 | -4/Factory | Evolved 2 slots: Utility x1, Weapon x1 20415 | -4/Factory | Identified exit to Extension 20416 | -4/Factory | Identified exit to Armory 20417 | -4/Factory | Loaded intel: 28 terminal locations 20578 | -4/Factory | Retrieved Zion intel report: Unaware Analyses 20626 | -4/Factory | Incoming investigation squad redirected 20653 | -4/Factory | Zion Fire squad teleported in 20683 | -4/Factory | Lost 5 parts (1p1n3u) 20716 | -4/Factory | Retrieved Zion intel report: Prototype Schematics 20717 | -4/Factory | Zion Fire squad teleported in 20974 | -4/Factory | Zion Fire squad teleported in 21008 | -4/Factory | Retrieved Zion intel report: Emergency Access 21031 | -4/Factory | Incoming investigation squad redirected 21039 | -4/Factory | Incoming assault squad redirected 21164 | -4/Factory | First assault squad dispatched 21167 | -4/Factory | Retrieved Zion intel report: Unaware Analyses 21179 | -4/Factory | Incoming assault squad redirected 21189 | -4/Factory | Incoming investigation squad redirected 21228 | -4/Factory | Discovered new exit (range 9) 21235 | -4/Factory | Identified exit to Upper Caves 21298 | -4/Factory | Entered Upper Caves 21298 | -4/Upper Caves | Accompanied by 2 allies 21299 | -4/Upper Caves | P-70 Sage assimilated allied V1-SQM(i) 21429 | -4/Upper Caves | Learned Research trap positions 21438 | -4/Upper Caves | Learned Research trap positions 21480 | -4/Upper Caves | Attracted the attention of an 0b10 checkpoint 21507 | -4/Upper Caves | Spotted B-86 Titan 21566 | -4/Upper Caves | Build established: Machinist-Gunner 21622 | -4/Upper Caves | A Derelict revealed a hidden shortcut to "reach the base" 21753 | -4/Upper Caves | Identified exit to Warlord 21754 | -4/Upper Caves | Entered Warlord 21810 | -4/Warlord | Learned Armory trap positions 21810 | -4/Warlord | Learned Testing trap positions 21810 | -4/Warlord | Learned Quarantine emergency access door positions 21811 | -4/Warlord | Learned 4 Research zone layouts 21811 | -4/Warlord | Learned Testing security intel 21811 | -4/Warlord | Learned Factory recycling unit intel 21811 | -4/Warlord | Learned Armory garrison access intel 22107 | -4/Warlord | Rebuked by Warlord 22112 | -4/Warlord | Opened Warlord's prototype stash 22124 | -4/Warlord | Found Prototype Processor 22124 | -4/Warlord | Identified Exp. Armor Integrity Analyzer 22131 | -4/Warlord | Found Exp. Targeting Computer 22132 | -4/Warlord | Warlord's base attacked by MAIN.C 22297 | -4/Warlord | Build established: Commander-Gunner 22385 | -4/Warlord | Warlord forces counterattacked 22432 | -4/Warlord | Spotted Striker 22435 | -4/Warlord | Spotted Executioner 22449 | -4/Warlord | Destroyed Striker 22534 | -4/Warlord | Found System Purifier 22676 | -4/Warlord | Spotted Executioner 22714 | -4/Warlord | Spotted Striker 22722 | -4/Warlord | Build established: Commander-Mutant 22768 | -4/Warlord | Spotted Executioner 22781 | -4/Warlord | Spotted Executioner 22807 | -4/Warlord | Warlord base infiltrated, sounded retreat 22823 | -4/Warlord | Lost 5 parts (1p3u1w) 22852 | -4/Warlord | Spotted Striker 22897 | -4/Warlord | Found Exp. Targeting Computer 22932 | -4/Warlord | Spotted Striker 23045 | -4/Warlord | Spotted Striker 23068 | -4/Warlord | Allies destroyed Striker 23121 | -4/Warlord | Destroyed 8 combat bots 23162 | -4/Warlord | Spotted Striker 23179 | -4/Warlord | Build established: Scavenger-Gunner 23183 | -4/Warlord | Spotted Executioner 23202 | -4/Warlord | Spotted Executioner 23207 | -4/Warlord | Core integrity fell below 50% 23207 | -4/Warlord | Found Prototype Ballistic Cannon 23207 | -4/Warlord | Identified Hvy. Autocannon 23225 | -4/Warlord | System corruption reached 10% 23236 | -4/Warlord | Identified Transdimensional Reconstructor 23236 | -4/Warlord | Warped through subspace 23266 | -4/Warlord | Lost 22 parts (2p5n10u5w) 23296 | -4/Warlord | Core integrity fell below 20% 23297 | -4/Warlord | Spotted Striker 23308 | -4/Warlord | Destroyed by Striker with Plasma Lance Last Messages --------------- 23301_ Cmb. Gravmag System destroyed. 23301_ Knocked back. 23302_ P-80 Master heat short circuits Imp. Antigrav System. 23302_ P-70 Sage triggered Fire Trap. 23302_ Burning plasma bursts from the floor. 23304_ Tesla Rifle melted. 23304_ Imp. Remote Datajack melted. 23304_ Mic. Fission Core melted. 23304_ Antigrav System melted. 23304_ P-70 Sage destroyed. 23304_ Destroyed Imp. Heat Sink. 23304_ Melted Lgt. Particle Reactor. 23305_ P-80 Master heat damages Imp. Antigrav System, Sml. Battery, Prototype Energy Gun, Broken Adv. Heat Sink. 23305_ P-70 Sage heat damages Antigrav System, Hpw. Shock Rifle. 23306_ P-80 Master heat damages Imp. Antigrav System. 23306_ P-70 Sage heat short circuits Antigrav System. 23307_ P-70 Sage heat damages core (-14). 23308_ P-80 Master heat damages Broken Imp. Antigrav System, Imp. Antigrav System, Prototype Energy Gun. Map ----- +----------------------------------------------------+ | | | | | | | | | | | | | | | | | | | | | | | | | | | | | | | ?????????????????????????????????????????????????? | | ??????##################?????????????????????????? | | ??????# # #?????????????????????????? | | ??????# # #????##???????????????????? | | ??????# # #####;###########X????????? | | ######? # + % g ??????? | | ## """ """ # # ??????? | | ## """ """ # # #########??????????? | | ## """ """ # # #??????????????????? | | ## ###+#### K #??????????????????? | | ] ####+###+### ## @ #??????????????????? | | ] #??# ## #??????????????????? | | ] %#### # #######????????????? | | /!+ ]%/ #; # ????????????? | | #########+## #; # """"" ???????????? | | ####### ## ###K # """"" #??????????? | | + ## #?;p % # """"" #??????????? | | ###### ## #?; ! + #??????????? | | #????# ## #?; # #??????????? | | +#????# ## ### # #??????????? | | #???# ! # ## # #??????????? | | X??# # p #########??????????? | | "?# # #??????????????????? | | X"############ #??????????????????? | | X X "#??????????# ###;; ##?????????????????? | | """""#?????########+####? ; #?????????????????? | | ######?????# #?# ##?????""??????????? | | ???????????# #?# ##???#""#?????????? | | ???????????# #?# % # #???#""#?????##### | | ???????????# ^ #### #####""#????## # | | ???????????# #"" ## #""###### ### | | ###????????# ^ # ""%%%"%%"#""" | | ????????# # %[ # ""%%=%%%% | | ????????#####+###"+#" ! * %%""%%%=%=%% | | "" #?????????# =% %%%%%%%%*%%!%% | +----------------------------------------------------+ Best States ------------- Heat Dissipation 93 Energy Generation 59 Energy Capacity 600 Matter Stores 300 Matter Capacity 300 Sight Range 16 Robot Scan Range 19 Terrain Scan Density 10 Jamming Range 16 Cloak Strength 3 Additional Mass Support 12 Armor Coverage 825 Resistance: KI 20 Resistance: TH 20 Propulsion Shielding 90 Weapon Shielding 100 Weapon Cycling 25 Phase Shifting 5 Evasion (%) 59 Targeting Accuracy 36 Recoil Reduction 6 Offensive Hacking 10 Defensive Hacking 14 Authchip Count 1 Item Schematics ----------------- Cmb. Antigrav System | -8/Materials | Scanalyzed Lgt. Neutrino Core | -8/Materials | Scanalyzed Mak. Sensor Array | -7/Factory | Scanalyzed Mak. Trap Scanner | -7/Factory | Scanalyzed Combat Drone Bay | -7/Data Miner | Free Lgt. Regenerative Plating | -7/Data Miner | Free Biomechanical Wings | -7/Data Miner | Free Gravity Neutralizing Apparatus | -7/Data Miner | Free Imp. Heavy Laser | -7/Data Miner | Free Nuclear Pulse Array | -7/Data Miner | Free Adv. Hacking Suite | -7/Data Miner | Free Hyp. Gauss Cannon | -7/Data Miner | Free Cmb. Gravmag System | -7/Data Miner | Free Arm. Medium Treads | -7/Data Miner | Free Antimatter Reactor | -7/Data Miner | Free Adv. Terrain Scanner | -6/Zion | Archive Hvy. Machine Gun | -6/Zion | Archive Imp. Arc Projector | -6/Zion | Archive Cloaking Device | -6/Zion | Archive Lgt. Angular Momentum Engine | -6/Zion | Archive Hardcell Cannon | -6/Zion | Archive Spk. Heavy Treads | -6/Zion | Archive Imp. Trap Scanner | -6/Zion | Archive Adv. Drone Bay | -6/Zion | Archive Adv. Heat Sink | -6/Zion | Archive Hvy. Plasma Cannon | -6/Zion | Archive Point Defense System | -6/Zion | Archive Assault Drone Bay | -5/Zhirov | Free Exp. Heat Sink | -5/Zhirov | Free Exp. Optical Array | -5/Zhirov | Free Imp. Arc Thrower | -5/Zhirov | Free Lrn. Phase Cannon | -4/Factory | Z-intel Imp. Energy Well | -4/Factory | Z-intel Enh. Fission Core | -4/Factory | Z-intel Inertial Stasis Machine | -4/Factory | Z-intel Plasma Sword | -4/Factory | Z-intel Adv. Myomer Leg | -4/Factory | Z-intel Imp. KE Penetrator | -4/Factory | Z-intel Cld. Proton Cannon | -4/Factory | Z-intel Exp. Targeting Computer | -4/Factory | Z-intel Cld. Plasma Rifle | -4/Factory | Z-intel Prc. Matter Filter | -4/Factory | Z-intel Exp. Cooling System | -4/Factory | Scanalyzed Robot Schematics ------------------ B-48 Gladiator | -7/Data Miner | Free E-15 Imp | -7/Data Miner | Free H-55 Commando | -7/Data Miner | Free S-27 Virus | -7/Data Miner | Free B-60 Warrior | -7/Data Miner | Free M-22 Extractor | -6/Zion | Archive A-02 Transporter | -6/Zion | Archive A-15 Conveyor | -6/Zion | Archive C-57 Dissector | -6/Zion | Archive L-41 Fighter | -5/Factory | Z-intel G-50 Soldier | -5/Factory | Z-intel T-07 Excavator | -5/Factory | Z-intel H-66 Slayer | -5/Factory | Z-intel Fabricated ------------ Cmb. Antigrav System | x2 | -7/Factory Cmb. Antigrav System | x2 | -7/Factory Cmb. Antigrav System | x2 | -6/Factory Alien Tech Used ----------------- Integrated Reactor Transdimensional Reconstructor Achievements -------------- None Challenges ------------ None Game ------ Seed ColdStasisWheel Manual? 0 Play Time 03:31:31 Cumulative 991.1 hours Start 2021.10.31 @ 11:58:24 End 2021.11.02 @ 01:54:33 Sessions 7 Manual Loads 0 Difficulty Rogue Special Mode None Game No. 677 Rogue 673 Adventurer 4 Explorer 0 Win Type - Total 105 Types 79/9/7/4/2/0/0/2/2 Lore% 94 Gallery% 97 Achievement% 96 Wizard Run 0 Options --------- ASCII 0 Keyboard 1 Movement Vi Keybinds 0 Fullscreen 0 Font 16/Terminus Map View 76x50 Tactical HUD 1 Map Filters NONE Filters NONE Steam 1 RUN: 1ff57fdc-ad33-49f9-a1fd-b1354694435f